bitfinex/quotes_BTCUSD_20241123
["timestamp","ask_amount","ask_price","bid_price","bid_amount"]
[1732342484127,0.0456,98260.0,98206.0,0.05073379]
[1732342484330,0.0456,98260.0,98154.0,0.77569011]
[1732342484331,0.00101779,98259.0,98210.0,0.05050844]
[1732342484545,0.1,98268.0,98210.0,0.05050844]
[1732342484546,0.1,98268.0,98214.0,0.0795]
[1732342484792,0.09528959,98268.0,98220.0,0.0477]
[1732342485035,0.09528959,98268.0,98224.0,0.0477]
[1732342486403,0.09528959,98268.0,98227.0,0.05042055]
[1732342487023,0.09528959,98268.0,98228.0,0.0477]
[1732342487238,0.1255,98267.0,98228.0,0.0477]
[1732342487439,0.0456,98265.0,98228.0,0.0477]
[1732342487647,0.0456,98265.0,98229.0,0.12985719]
[1732342487849,0.0273596,98268.0,98229.0,0.12985719]
[1732342488055,0.0273596,98268.0,98231.0,0.0477]
[1732342488688,0.0273596,98268.0,98233.0,0.0477]
[1732342490428,0.0799,98267.0,98233.0,0.0477]
[1732342491063,0.0799,98265.0,98233.0,0.0477]
[1732342491273,0.1255,98265.0,98234.0,0.0477]
[1732342491715,0.1255,98265.0,98235.0,0.05001327]
[1732342491962,0.1255,98265.0,98236.0,0.1272]
[1732342492662,0.07734602,98265.0,98236.0,0.1272]
[1732342492881,0.07734602,98265.0,98237.0,0.05032025]
[1732342493289,0.0552437,98265.0,98237.0,0.05032025]
[1732342493549,0.0273596,98268.0,98238.0,0.0477]
[1732342493791,0.0273596,98271.0,98238.0,0.0477]
[1732342494028,0.0273596,98268.0,98238.0,0.0477]
[1732342494462,0.0273596,98268.0,98239.0,0.0477]
[1732342495339,0.1008608,98273.0,98239.0,0.0477]
[1732342495340,0.0008608,98273.0,98239.0,0.0477]
[1732342495555,0.0008608,98273.0,98240.0,0.0477]
[1732342495992,0.0008603,98268.0,98240.0,0.0477]
[1732342496757,0.0008603,98268.0,98242.0,0.0477]
[1732342496758,0.1255,98267.0,98242.0,0.0477]
[1732342497682,0.12057383,98267.0,98242.0,0.0477]
[1732342497926,0.000226,98245.0,98242.0,0.0477]
[1732342500406,0.04133561,98267.0,98242.0,0.0477]
[1732342502310,0.02714933,98267.0,98242.0,0.0477]
[1732342502528,0.02714933,98267.0,98242.0,0.0497]
[1732342503386,0.02714933,98267.0,98244.0,0.0462]
[1732342504253,0.0008603,98268.0,98245.0,0.0829]
[1732342504459,0.0008603,98268.0,98246.0,0.0462]
[1732342504850,0.0008603,98268.0,98247.0,0.05067736]
[1732342508733,0.0008603,98268.0,98249.0,0.0462]
[1732342509188,0.0008603,98268.0,98251.0,0.0462]
[1732342509608,0.0008603,98268.0,98253.0,0.0462]
[1732342510060,0.0008603,98268.0,98254.0,0.05070078]
[1732342513911,0.0008603,98268.0,98254.0,0.09165609]
[1732342514136,0.0008603,98268.0,98255.0,0.0462]
[1732342514339,0.0008603,98268.0,98256.0,0.0829]
[1732342514553,0.0008603,98268.0,98256.0,0.08740055]
[1732342516824,0.0008603,98268.0,98257.0,0.0462]
[1732342517194,0.0008603,98268.0,98258.0,0.0045001]
[1732342527510,0.06309139,98274.0,98258.0,0.0045001]
[1732342527715,0.05778758,98274.0,98258.0,0.0045001]
[1732342532090,0.05864788,98274.0,98258.0,0.0045001]
[1732342532726,0.05778758,98261.0,98258.0,0.0045001]
[1732342533142,0.05778758,98261.0,98256.0,0.0017206]
[1732342539843,0.04699429,98261.0,98256.0,0.0017206]
[1732342541553,0.04699429,98261.0,98257.0,0.00475693]
[1732342542598,0.0751,98269.0,98257.0,0.00475693]
[1732342542599,0.023,98268.0,98257.0,0.00475693]
[1732342543012,0.03094674,98261.0,98258.0,0.0047551]
[1732342543200,0.03094674,98261.0,98209.0,0.01458432]
[1732342543201,0.03094674,98261.0,98237.0,0.05024347]
[1732342543415,0.023,98268.0,98237.0,0.05024347]
[1732342543616,0.023,98268.0,98211.0,0.05057936]
[1732342543825,0.023,98268.0,98212.0,0.00101794]
[1732342544659,0.023,98268.0,98237.0,0.0017204]
[1732342545086,0.0497,98267.0,98237.0,0.0017204]
[1732342545518,0.0497,98267.0,98237.0,0.04344475]
[1732342545720,0.0497,98267.0,98237.0,0.0017204]
[1732342545943,0.0497,98267.0,98239.0,0.0762]
[1732342546266,0.0497,98267.0,98240.0,0.0477]
[1732342548681,0.0751,98266.0,98240.0,0.0888695]
[1732342549608,0.1248,98264.0,98240.0,0.0888695]
[1732342549825,0.0497,98260.0,98240.0,0.0888695]
[1732342556537,0.0497,98260.0,98240.0,0.0905903]
[1732342556760,0.04644767,98260.0,98240.0,0.0905903]
[1732342557869,0.04288824,98260.0,98240.0,0.0905903]
[1732342560227,0.04483824,98261.0,98241.0,0.0762]
[1732342560454,0.04483824,98261.0,98242.0,0.0452]
[1732342562028,0.04483824,98261.0,98193.0,0.023]
[1732342562237,0.04483824,98261.0,98195.0,0.023]
[1732342562655,0.04483824,98261.0,98197.0,0.023]
[1732342562855,0.0486,98260.0,98197.0,0.023]
[1732342564114,0.0486,98260.0,98198.0,0.0505812]
[1732342564955,0.023,98272.0,98202.0,0.1214]
[1732342565167,0.023,98272.0,98206.0,0.0452]
[1732342565390,0.07916286,98272.0,98211.0,0.1214]
[1732342565593,0.07916286,98272.0,98218.0,0.1214]
[1732342565803,0.023,98272.0,98200.0,0.05079729]
[1732342566018,0.023,98272.0,98228.0,0.0452]
[1732342567875,0.0798,98266.0,98228.0,0.0452]
[1732342568079,0.0798,98264.0,98230.0,0.0452]
[1732342569012,0.0486,98265.0,98230.0,0.0452]
[1732342569013,0.01903334,98265.0,98230.0,0.0452]
[1732342569258,0.023,98272.0,98232.0,0.0452]
[1732342569485,0.023,98272.0,98234.0,0.0452]
[1732342569713,0.023,98272.0,98236.0,0.0452]
[1732342569982,0.0238609,98272.0,98237.0,0.0452]
[1732342570428,0.0238609,98272.0,98239.0,0.0452]
[1732342572255,0.023,98270.0,98239.0,0.0452]
[1732342573653,0.0798,98269.0,98239.0,0.0452]
[1732342573894,0.023,98268.0,98240.0,0.0452]
[1732342574761,0.023,98256.0,98190.0,0.0502708]
[1732342575030,0.023,98256.0,98192.0,0.05079726]
[1732342576385,0.023,98256.0,98193.0,0.00101798]
[1732342576843,0.023,98256.0,98193.0,0.02401798]
[1732342577052,0.023,98256.0,98195.0,0.023]
[1732342577767,0.023,98256.0,98194.0,0.05047345]
[1732342578011,0.1284,98255.0,98207.0,0.0762]
[1732342578246,0.1284,98255.0,98187.0,0.04842097]
[1732342578247,0.0798,98252.0,98197.0,0.0452]
[1732342578468,0.023,98251.0,98199.0,0.0452]
[1732342578974,0.023,98251.0,98201.0,0.0452]
[1732342579204,0.023,98251.0,98183.0,0.09281405]
[1732342579205,0.023,98251.0,98203.0,0.0452]
[1732342580095,0.0783,98252.0,98203.0,0.0452]
[1732342580363,0.023,98251.0,98185.0,0.047]
[1732342580593,0.0783,98248.0,98186.0,0.047]
[1732342580799,0.023,98247.0,98186.0,0.047]
[1732342581022,0.023,98247.0,98184.0,0.05074685]
[1732342581254,0.023,98247.0,98189.0,0.0778]
[1732342581487,0.023,98247.0,98192.0,0.047]
[1732342581712,0.023,98247.0,98194.0,0.047]
[1732342581916,0.023,98247.0,98198.0,0.05080613]
[1732342582120,0.023,98247.0,98203.0,0.1248]
[1732342582320,0.023,98245.0,98209.0,0.047]
[1732342582572,0.023,98245.0,98211.0,0.047]
[1732342582784,0.023,98245.0,98183.0,0.04086947]
[1732342582785,0.0783,98244.0,98215.0,0.05056066]
[1732342582997,0.0782,98241.0,98216.0,0.0486]
[1732342583204,0.1012,98240.0,98216.0,0.0486]
[1732342583811,0.023,98241.0,98216.0,0.0486]
[1732342584020,0.0782,98237.0,98216.0,0.0486]
[1732342584461,0.01105569,98237.0,98216.0,0.0486]
[1732342585098,0.00718595,98232.0,98216.0,0.0486]
[1732342585536,0.01105569,98237.0,98216.0,0.0486]
[1732342588033,0.01105569,98237.0,98216.0,0.09072962]
[1732342591116,0.1,98270.0,98216.0,0.09072962]
[1732342591117,0.023,98227.0,98216.0,0.04212962]
[1732342591339,0.023,98225.0,98216.0,0.04212962]
[1732342591549,0.023,98225.0,98204.0,0.0502685]
[1732342591761,0.023,98225.0,98203.0,0.0486]
[1732342592007,0.023,98225.0,98204.0,0.0502685]
[1732342592215,0.023,98225.0,98203.0,0.0486]
[1732342592424,0.023,98225.0,98203.0,0.08902782]
[1732342592637,0.023,98225.0,98203.0,0.13906433]
[1732342592841,0.023,98225.0,98203.0,0.08902782]
[1732342594360,0.023,98225.0,98203.0,0.13906433]
[1732342595485,0.1279,98226.0,98203.0,0.13906433]
[1732342595988,0.11396,98226.0,98203.0,0.13906433]
[1732342596444,0.10501,98226.0,98204.0,0.0502685]
[1732342596892,0.09597001,98226.0,98203.0,0.08902782]
[1732342597125,0.0782,98225.0,98203.0,0.08902782]
[1732342597373,0.0782,98225.0,98204.0,0.0017212]
[1732342597804,0.07485045,98225.0,98204.0,0.0017212]
[1732342598858,0.07485045,98225.0,98205.0,0.02865181]
[1732342609872,0.07485045,98225.0,98205.0,0.03037301]
[1732342610300,0.07571105,98225.0,98205.0,0.03037301]
[1732342612076,0.07571105,98225.0,98205.0,0.0017212]
[1732342622491,0.0187275,98225.0,98205.0,0.0017212]
[1732342623475,0.0187275,98225.0,98206.0,0.0496]
[1732342626609,0.0187275,98225.0,98170.0,0.05041497]
[1732342627302,0.0187275,98225.0,98158.0,0.05068593]
[1732342628779,0.0187275,98225.0,98159.0,0.01406335]
[1732342629204,0.0187275,98225.0,98160.0,0.05073166]
[1732342629646,0.0829,98224.0,98165.0,0.1291]
[1732342629870,0.0829,98224.0,98171.0,0.1291]
[1732342630075,0.0829,98224.0,98173.0,0.0496]
[1732342630284,0.0829,98224.0,98175.0,0.0496]
[1732342630491,0.0829,98224.0,98177.0,0.0496]
[1732342630699,0.0829,98224.0,98180.0,0.1291]
[1732342630927,0.0829,98224.0,98183.0,0.0795]
[1732342631146,0.0829,98224.0,98186.0,0.0496]
[1732342631376,0.0829,98222.0,98186.0,0.0496]
[1732342631873,0.0829,98222.0,98187.0,0.05015488]
[1732342632091,0.0829,98222.0,98188.0,0.0496]
[1732342633791,0.0829,98222.0,98190.0,0.0496]
[1732342635542,0.0829,98222.0,98191.0,0.05068015]
[1732342635766,0.0829,98222.0,98192.0,0.0496]
[1732342636385,0.0008606,98225.0,98192.0,0.0496]
[1732342636386,0.0829,98220.0,98192.0,0.0496]
[1732342636837,0.06671,98220.0,98193.0,0.05007468]
[1732342637273,0.0472,98221.0,98193.0,0.05007468]
[1732342637726,0.02531,98221.0,98186.0,0.05079557]
[1732342637974,0.01139001,98221.0,98194.0,0.0496]
[1732342638244,0.01139001,98221.0,98195.0,0.05021839]
[1732342638460,0.0008606,98225.0,98195.0,0.05021839]
[1732342638682,0.0008606,98225.0,98196.0,0.0496]
[1732342640208,0.0767,98224.0,98196.0,0.0496]
[1732342641498,0.0767,98222.0,98196.0,0.0496]
[1732342644750,0.0767,98222.0,98196.0,0.0904106]
[1732342645554,0.0784214,98222.0,98196.0,0.0904106]
[1732342646397,0.0008606,98232.0,98196.0,0.0904106]
[1732342646398,0.0008606,98232.0,98197.0,0.1279]
[1732342646613,0.52889776,98256.0,98197.0,0.0010183]
[1732342646827,0.1361417,98286.0,98195.0,0.05021839]
[1732342646828,0.52889776,98268.0,98209.0,0.0482]
[1732342647059,0.52889776,98268.0,98211.0,0.0482]
[1732342647321,0.52889776,98268.0,98212.0,0.0482]
[1732342647760,0.023,98267.0,98212.0,0.0482]
[1732342649071,0.023,98267.0,98214.0,0.0482]
[1732342649072,0.52889776,98267.0,98214.0,0.0482]
[1732342649275,0.52975866,98272.0,98221.0,0.0797]
[1732342649482,0.52975866,98272.0,98198.0,0.05017479]
[1732342649483,0.0767,98271.0,98224.0,0.0482]
[1732342649677,0.0767,98271.0,98226.0,0.0482]
[1732342649869,0.0767,98271.0,98228.0,0.0482]
[1732342650088,0.0767,98271.0,98229.0,0.0482]
[1732342650338,0.0767,98271.0,98229.0,0.0527328]
[1732342651852,0.0767,98269.0,98229.0,0.0527328]
[1732342652053,0.0767,98267.0,98229.0,0.0527328]
[1732342652530,0.0767,98271.0,98229.0,0.0527328]
[1732342653145,0.0767,98269.0,98229.0,0.0527328]
[1732342653358,0.0767,98267.0,98229.0,0.0527328]
[1732342653638,0.023,98266.0,98229.0,0.0527328]
[1732342653906,0.023,98265.0,98229.0,0.0527328]
[1732342654115,0.0767,98264.0,98229.0,0.0527328]
[1732342656927,0.0767,98262.0,98229.0,0.0527328]
[1732342657141,0.62859776,98261.0,98229.0,0.0527328]
[1732342657556,0.0767,98258.0,98229.0,0.0482]
[1732342657776,0.0767,98259.0,98229.0,0.0482]
[1732342658413,0.0767,98257.0,98229.0,0.0482]
[1732342658619,0.0767,98255.0,98229.0,0.0482]
[1732342658802,0.023,98254.0,98229.0,0.0482]
[1732342659063,0.0767,98253.0,98229.0,0.0482]
[1732342659273,0.023,98252.0,98230.0,0.00450194]
[1732342664459,0.01000863,98252.0,98229.0,0.00575589]
[1732342664878,0.0767,98253.0,98229.0,0.00575589]
[1732342665124,0.08094007,98248.0,98182.0,0.04197795]
[1732342665342,0.0010181,98247.0,98183.0,0.05190318]
[1732342665551,0.00199899,98229.0,98183.0,0.05190318]
[1732342665778,0.00306848,98229.0,98183.0,0.05190318]
[1732342665985,0.06755216,98248.0,98183.0,0.05190318]
[1732342666188,0.06580919,98248.0,98183.0,0.05190318]
[1732342668138,0.06580919,98248.0,98187.0,0.0481]
[1732342668382,0.06580919,98248.0,98192.0,0.0481]
[1732342668592,0.05912909,98248.0,98196.0,0.075]
[1732342668813,0.05912909,98248.0,98201.0,0.075]
[1732342669089,0.05912909,98248.0,98198.0,0.05025109]
[1732342669090,0.05764302,98248.0,98203.0,0.075]
[1732342669316,8.92e-05,98229.0,98205.0,0.075]
[1732342669534,0.0549429,98248.0,98208.0,0.0481]
[1732342669736,0.0549429,98248.0,98214.0,0.0481]
[1732342670368,0.0477244,98248.0,98214.0,0.0481]
[1732342671202,0.04574487,98248.0,98214.0,0.0481]
[1732342671832,0.06163822,98247.0,98214.0,0.0481]
[1732342672275,0.05539547,98247.0,98214.0,0.04690626]
[1732342672503,0.04946025,98247.0,98215.0,0.075]
[1732342673407,0.04599468,98247.0,98215.0,0.075]
[1732342674737,0.04154098,98247.0,98215.0,0.075]
[1732342675400,0.04154098,98247.0,98217.0,0.0481]
[1732342676262,0.04154098,98247.0,98219.0,0.0481]
[1732342676769,0.03713997,98247.0,98219.0,0.0481]
[1732342676993,0.03713997,98247.0,98220.0,0.0481]
[1732342677419,0.03302366,98247.0,98220.0,0.0481]
[1732342679602,0.02665517,98247.0,98220.0,0.0481]
[1732342680050,0.02665517,98247.0,98222.0,0.0481]
[1732342680500,0.07240004,98247.0,98176.0,0.05511573]
[1732342680748,0.023,98229.0,98177.0,0.05067111]
[1732342680985,0.04574487,98226.0,98177.0,0.09266139]
[1732342681213,0.1002,98225.0,98177.0,0.09266139]
[1732342681442,0.0772,98225.0,98177.0,0.09266139]
[1732342683040,0.0772,98225.0,98183.0,0.0008604]
[1732342683678,0.0772,98225.0,98185.0,0.0492]
[1732342683889,0.0772,98225.0,98186.0,0.0757]
[1732342684186,0.0772,98225.0,98187.0,0.0492]
[1732342685095,0.12294487,98225.0,98188.0,0.05074538]
[1732342685272,0.12294487,98225.0,98190.0,0.05038657]
[1732342686359,0.04574487,98223.0,98190.0,0.05038657]
[1732342687940,0.04574487,98223.0,98192.0,0.05050304]
[1732342691011,0.0477,98222.0,98192.0,0.05050304]
[1732342691440,0.0784,98221.0,98177.0,0.0403346]
[1732342692387,0.0784,98221.0,98159.0,0.05013387]
[1732342692825,0.0784,98221.0,98160.0,0.0757]
[1732342692826,0.07135251,98221.0,98160.0,0.0757]
[1732342693255,0.0477,98220.0,98162.0,0.0757]
[1732342694300,0.0477,98220.0,98163.0,0.0492]
[1732342694534,0.0477,98220.0,98168.0,0.0492]
[1732342694756,0.0477,98220.0,98170.0,0.0492]
[1732342694965,0.0477,98220.0,98159.0,0.05013387]
[1732342694966,0.0477,98220.0,98190.0,0.50586628]
[1732342695184,0.0477,98220.0,98191.0,0.05077038]
[1732342695851,0.0477,98218.0,98191.0,0.05077038]
[1732342696087,0.0784,98217.0,98191.0,0.05077038]
[1732342697034,0.04574487,98223.0,98191.0,0.05077038]
[1732342697035,0.0784,98215.0,98191.0,0.05077038]
[1732342697272,0.0784,98215.0,98156.0,0.05026921]
[1732342697488,0.0477,98212.0,98156.0,0.0923642]
[1732342697704,0.1261,98211.0,98157.0,0.023]
[1732342698163,0.1261,98210.0,98158.0,0.05096656]
[1732342699270,0.1261,98209.0,98158.0,0.05096656]
[1732342699739,1e-08,98209.0,98162.0,0.0757]
[1732342699983,1e-08,98209.0,98164.0,0.0757]
[1732342700217,1e-08,98209.0,98166.0,0.0757]
[1732342700436,1e-08,98209.0,98168.0,0.05097999]
[1732342700659,1e-08,98209.0,98170.0,0.0757]
[1732342700889,1e-08,98209.0,98171.0,0.049]
[1732342701744,1e-08,98209.0,98173.0,0.049]
[1732342702162,1e-08,98209.0,98174.0,0.05077412]
[1732342702804,0.1284,98208.0,98174.0,0.05077412]
[1732342703023,1e-08,98209.0,98174.0,0.05077412]
[1732342703236,0.04574487,98222.0,98176.0,0.05018467]
[1732342703513,0.04574487,98222.0,98178.0,0.05082582]
[1732342703948,0.04574487,98222.0,98179.0,0.0498]
[1732342704169,0.04574487,98222.0,98180.0,0.05069204]
[1732342705661,0.04574487,98222.0,98178.0,0.05082582]
[1732342705885,0.04574487,98222.0,98181.0,0.0498]
[1732342706351,0.079,98217.0,98181.0,0.0498]
[1732342706574,0.1282,98216.0,98181.0,0.0498]
[1732342706794,0.1282,98214.0,98181.0,0.0498]
[1732342707224,0.1282,98214.0,98182.0,0.05008717]
[1732342707686,0.079,98212.0,98158.0,0.05096656]
[1732342707908,0.04574487,98219.0,98158.0,0.05096656]
[1732342707909,0.079,98210.0,98158.0,0.05096656]
[1732342708140,0.0492,98209.0,98158.0,0.05096656]
[1732342708799,0.0492,98209.0,98159.0,0.02605939]
[1732342709018,0.0492,98209.0,98159.0,0.06659239]
[1732342709459,0.079,98208.0,98159.0,0.06659239]
[1732342709722,0.079,98208.0,98160.0,0.0504954]
[1732342710139,0.04012271,98207.0,98160.0,0.0504954]
[1732342710370,0.04012271,98207.0,98163.0,0.0498]
[1732342710578,0.04012271,98207.0,98165.0,0.0498]
[1732342710786,0.04012271,98207.0,98162.0,0.05081825]
[1732342710787,0.04012271,98207.0,98168.0,0.0498]
[1732342711026,0.04012271,98207.0,98170.0,0.0498]
[1732342711239,0.079,98208.0,98171.0,0.05029312]
[1732342711461,0.079,98208.0,98172.0,0.0498]
[1732342711677,0.079,98208.0,98174.0,0.0498]
[1732342711894,0.079,98208.0,98175.0,0.05097013]
[1732342712100,0.078,98208.0,98176.0,0.0498]
[1732342712566,0.078,98208.0,98177.0,0.05039058]
[1732342713030,0.078,98208.0,98178.0,0.0498]
[1732342713762,0.078,98208.0,98173.0,0.0758]
[1732342713763,0.078,98208.0,98180.0,0.0498]
[1732342714220,0.0492,98207.0,98180.0,0.0498]
[1732342715132,0.0492,98207.0,98182.0,0.0498]
[1732342715589,0.04217394,98207.0,98183.0,0.0509009]
[1732342716756,0.04250363,98208.0,98189.0,0.0498]
[1732342716984,0.04250363,98208.0,98190.0,0.05078103]
[1732342717219,0.04574487,98219.0,98191.0,0.0498]
[1732342717451,0.04574487,98219.0,98192.0,0.05085607]
[1732342719701,0.0492,98218.0,98192.0,0.05085607]
[1732342720358,0.0794,98217.0,98192.0,0.05085607]
[1732342721450,0.0794,98217.0,98192.0,0.09201373]
[1732342723430,0.0794,98217.0,98193.0,0.1238]
[1732342724758,0.0794,98217.0,98194.0,0.05042671]
[1732342729652,0.0794,98217.0,98174.0,0.05066582]
[1732342730519,0.0794,98217.0,98175.0,0.040533]
[1732342730763,0.0794,98217.0,98176.0,0.05037773]
[1732342732537,0.1244,98216.0,98176.0,0.05037773]
[1732342732737,0.1244,98216.0,98177.0,0.0763]
[1732342732939,0.1244,98216.0,98179.0,0.0763]
[1732342733153,0.1244,98216.0,98180.0,0.0475]
[1732342733713,0.1244,98216.0,98181.0,0.05019406]
[1732342733929,0.1244,98216.0,98182.0,0.0475]
[1732342735505,0.0794,98215.0,98182.0,0.0475]
[1732342736490,0.0794,98215.0,98184.0,0.0475]
[1732342737455,0.0794,98213.0,98184.0,0.0475]
[1732342740009,0.1244,98211.0,98169.0,0.0505442]
[1732342740215,0.0786,98210.0,98169.0,0.05010371]
[1732342740695,0.0465,98209.0,98169.0,0.05010371]
[1732342740906,0.0786,98208.0,98169.0,0.05010371]
[1732342741525,0.0786,98208.0,98185.0,0.03]
[1732342741732,0.0786,98208.0,98186.0,0.05041759]
[1732342742172,0.07391597,98208.0,98159.0,0.0828]
[1732342742376,0.07391597,98208.0,98144.0,0.0828]
[1732342742789,0.0465,98207.0,98144.0,0.0828]
[1732342743000,0.0465,98207.0,98150.0,0.1281]
[1732342743235,0.0465,98207.0,98156.0,0.1281]
[1732342743449,0.0465,98207.0,98161.0,0.0453]
[1732342743692,0.0465,98207.0,98163.0,0.0453]
[1732342743864,0.0465,98207.0,98168.0,0.0453]
[1732342744080,0.0465,98207.0,98169.0,0.0453]
[1732342745359,0.0465,98205.0,98169.0,0.0453]
[1732342745614,0.0786,98204.0,98169.0,0.0453]
[1732342745796,0.0786,98204.0,98168.0,0.0453]
[1732342746098,0.0786,98204.0,98186.0,0.0008604]
[1732342747140,0.0786,98204.0,98187.0,0.05028178]
[1732342747697,0.0465,98205.0,98187.0,0.09037052]
[1732342747698,0.04364815,98205.0,98187.0,0.09037052]
[1732342750246,0.02368822,98205.0,98187.0,0.09037052]
[1732342750640,0.002,98213.0,98187.0,0.09037052]
[1732342750811,0.0786,98212.0,98187.0,0.09037052]
[1732342753066,0.0786,98212.0,98188.0,0.05077346]
[1732342753268,0.06716484,98212.0,98188.0,0.05077346]
[1732342753530,0.06716484,98212.0,98179.0,0.0828]
[1732342753531,0.0786,98210.0,98143.0,0.05033253]
[1732342753733,0.0786,98208.0,98143.0,0.05033253]
[1732342753941,0.1251,98204.0,98143.0,0.05033253]
[1732342754438,0.1198409,98204.0,98144.0,0.0453]
[1732342754659,0.1198409,98204.0,98146.0,0.0453]
[1732342755086,0.0400809,98204.0,98148.0,0.0453]
[1732342755299,0.0400809,98204.0,98151.0,0.0453]
[1732342755523,0.0400809,98204.0,98153.0,0.0453]
[1732342755723,0.002,98211.0,98156.0,0.1281]
[1732342755950,0.002,98213.0,98159.0,0.0453]
[1732342756169,0.002,98213.0,98149.0,0.05051514]
[1732342756551,0.002,98213.0,98153.0,0.0828]
[1732342756686,0.002,98213.0,98157.0,0.0828]
[1732342756908,0.002,98213.0,98159.0,0.0828]
[1732342757098,0.002,98213.0,98161.0,0.0828]
[1732342757314,0.002,98213.0,98162.0,0.0453]
[1732342757544,0.002,98212.0,98188.0,0.0008604]
[1732342757990,0.0485,98212.0,98188.0,0.0008604]
[1732342758446,0.0465,98212.0,98188.0,0.0008604]
[1732342758660,0.0786,98211.0,98188.0,0.0008604]
[1732342758866,0.0786,98209.0,98188.0,0.0008604]
[1732342759075,0.0786,98207.0,98189.0,0.0505939]
[1732342759288,0.1251,98207.0,98189.0,0.0505939]
[1732342760125,0.1308,98206.0,98189.0,0.0505939]
[1732342763031,0.1276633,98206.0,98189.0,0.0505939]
[1732342773904,0.0491,98204.0,98178.0,0.05052939]
[1732342774520,0.0817,98203.0,98178.0,0.05052939]
[1732342774703,0.0491,98202.0,98178.0,0.05052939]
[1732342774966,0.04383676,98202.0,98178.0,0.05052939]
[1732342775175,0.04383676,98202.0,98180.0,0.05067646]
[1732342778018,0.0817,98201.0,98181.0,0.00101829]
[1732342780230,0.0817,98201.0,98182.0,0.05045821]
[1732342780452,0.0817,98201.0,98183.0,0.00101827]
[1732342780674,0.0817,98201.0,98184.0,0.00101827]
[1732342780879,0.0817,98201.0,98183.0,0.00101827]
[1732342782152,0.0817,98201.0,98184.0,0.05082102]
[1732342782354,0.0817,98201.0,98185.0,0.00101827]
[1732342783851,0.0817,98201.0,98186.0,0.05090786]
[1732342784061,0.0817,98201.0,98187.0,0.00101827]
[1732342784890,0.0488,98200.0,98188.0,0.05045964]
[1732342785095,0.0488,98200.0,98189.0,0.00101828]
[1732342786165,0.0488,98200.0,98188.0,0.05045964]
[1732342786416,0.0488,98200.0,98189.0,0.00101828]
[1732342787298,0.0488,98200.0,98190.0,0.05065628]
[1732342787522,0.0488,98200.0,98191.0,0.00101828]
[1732342787724,0.0488,98200.0,98192.0,0.05008639]
[1732342787954,0.0488,98200.0,98193.0,0.00101828]
[1732342788612,0.0488,98200.0,98193.0,0.05132624]
[1732342789121,0.0488,98200.0,98193.0,0.05028036]
[1732342789354,0.0017208,98206.0,98194.0,0.00052742]
[1732342789586,0.0017208,98206.0,98190.0,0.00052739]
[1732342789812,0.0017208,98206.0,98191.0,0.00052739]
[1732342790042,0.0017208,98206.0,98191.0,0.05068354]
[1732342790270,0.0017208,98206.0,98192.0,0.05086572]
[1732342792503,0.1262,98205.0,98192.0,0.05086572]
[1732342800866,0.1262,98205.0,98189.0,0.05015464]
[1732342803308,0.1262,98205.0,98184.0,0.05015588]
[1732342804352,0.1262,98205.0,98178.0,0.05002487]
[1732342806252,0.1262,98205.0,98179.0,0.087932]
[1732342806637,0.1262,98205.0,98180.0,0.05056622]
[1732342806838,0.0481,98204.0,98180.0,0.20056622]
[1732342807083,0.0481,98204.0,98189.0,0.0008605]
[1732342807292,0.0481,98204.0,98190.0,0.05067271]
[1732342810361,0.04531833,98204.0,98190.0,0.05067271]
[1732342811692,0.04531833,98204.0,98190.0,0.09090534]
[1732342812745,0.0775,98202.0,98190.0,0.09090534]
[1732342813576,0.0481,98201.0,98190.0,0.09090534]
[1732342813801,0.0481,98201.0,98191.0,0.15]
[1732342814259,0.0481,98201.0,98190.0,0.09090534]
[1732342815806,0.04780935,98201.0,98190.0,0.09090534]
[1732342818442,0.04780935,98201.0,98190.0,0.04023263]
[1732342818660,0.04780935,98201.0,98189.0,0.0008605]
[1732342819951,0.04780935,98201.0,98189.0,0.04133659]
[1732342821470,0.04155329,98201.0,98189.0,0.04133659]
[1732342826606,0.03698874,98201.0,98189.0,0.04133659]
[1732342827464,0.03371755,98201.0,98189.0,0.04133659]
[1732342832018,0.001721,98205.0,98189.0,0.04133659]
[1732342832019,0.0766,98200.0,98189.0,0.04133659]
[1732342834930,0.0471,98199.0,98189.0,0.04133659]
[1732342840790,0.0471,98199.0,98180.0,0.05041887]
[1732342841685,0.0471,98199.0,98189.0,0.0008604]
[1732342843162,0.04085575,98199.0,98189.0,0.0008604]
[1732342845445,0.04085575,98199.0,98189.0,0.04160784]
[1732342846656,0.04085575,98199.0,98189.0,0.0008604]
[1732342851090,0.04085575,98199.0,98189.0,0.04219987]
[1732342851698,0.04085575,98199.0,98189.0,0.19219987]
[1732342854919,0.0287005,98199.0,98189.0,0.19219987]
[1732342859482,0.02613726,98199.0,98189.0,0.19219987]
[1732342862107,0.02613726,98199.0,98188.0,0.07763241]
[1732342864948,0.02613726,98199.0,98188.0,0.11859775]
[1732342865161,0.02613726,98199.0,98189.0,0.0008604]
[1732342865385,0.02785806,98199.0,98189.0,0.0008604]
[1732342870250,0.02785806,98199.0,98178.0,0.05045229]
[1732342870467,0.02471417,98199.0,98178.0,0.09685229]
[1732342872479,0.02471417,98199.0,98178.0,0.24685229]
[1732342875584,0.0017208,98199.0,98178.0,0.24685229]
[1732342876439,0.07651904,98200.0,98178.0,0.24685229]
[1732342876686,0.0017216,98222.0,98182.0,0.20074637]
[1732342876920,0.0017216,98222.0,98185.0,0.1215]
[1732342877162,0.0017216,98222.0,98188.0,0.0464]
[1732342877384,0.0017216,98222.0,98191.0,0.0464]
[1732342877607,0.0017216,98222.0,98192.0,0.15101811]
[1732342877854,0.0017216,98222.0,98195.0,0.0751]
[1732342878067,0.0017216,98222.0,98197.0,0.0751]
[1732342878273,0.001721,98199.0,98198.0,0.1225181]
[1732342878467,0.001721,98199.0,98198.0,0.2725181]
[1732342878671,0.0481,98220.0,98198.0,0.27627562]
[1732342878802,0.0481,98220.0,98199.0,0.15101808]
[1732342879247,0.0481,98220.0,98200.0,0.00477517]
[1732342879481,0.0481,98220.0,98201.0,0.00101808]
[1732342879695,0.0481,98220.0,98201.0,0.00579302]
[1732342880786,0.0481,98220.0,98201.0,0.00477494]